fUST/lending_fUST_20240821
["ID","MTS","AMOUNT","RATE_DAILY","PERIOD"]
[335420789,1724215759454,196.0,0.00014519,2]
[335420790,1724215759477,134.22909661,0.00014519,2]
[335420801,1724215766104,-106.58134388,0.00019999,2]
[335420802,1724215766125,-306.691839,0.0002,2]
[335420803,1724215766147,-195.14426525,0.0002,2]
[335420804,1724215766168,-174.505448,0.00020053,2]
[335420805,1724215766192,-174.505448,0.00020108,2]
[335420806,1724215766216,-174.505448,0.00020163,2]
[335420807,1724215766239,-145.75807033,0.00020217,2]
[335420808,1724215797608,168.698788,0.00014247,2]
[335420850,1724215838697,-254.4528707,0.0002023,2]
[335420852,1724215838707,-251.0,0.00020357,2]
[335420854,1724215838717,-706.2715971,0.00020372,2]
[335420856,1724215838727,-303.14911,0.00020398,2]
[335420858,1724215838737,-164.094157,0.00021109,2]
[335420860,1724215838747,-164.094157,0.00021193,2]
[335420863,1724215838756,-164.094157,0.00021278,2]
[335420865,1724215838765,-164.094157,0.00021362,2]
[335420867,1724215838775,-164.094157,0.00021447,2]
[335420869,1724215838785,-164.094157,0.00021532,2]
[335420872,1724215838795,-164.094157,0.00021616,2]
[335420875,1724215838804,-164.094157,0.00021701,2]
[335420877,1724215838814,-164.094157,0.00021785,2]
[335420880,1724215838824,-164.094157,0.0002187,2]
[335420883,1724215838833,-164.094157,0.00021955,2]
[335420884,1724215838843,-218.04469963,0.00022,2]
[335420886,1724215838852,-164.094157,0.00022039,2]
[335420888,1724215838862,-164.094157,0.00022124,2]
[335420890,1724215838873,-164.094157,0.00022208,2]
[335420893,1724215838883,-150.0,0.00023385,2]
[335420895,1724215838892,-3816.28325368,0.00023397,2]
[335420896,1724215838901,-151.53141612,0.00023619,2]
[335420898,1724215838911,-3816.28325368,0.0002366,2]
[335420900,1724215838920,-9523.4296489,0.00023983,2]
[335420902,1724215838930,-3816.2832537,0.00024042,2]
[335420904,1724215838940,-882.99597685,0.00024184,2]
[335420906,1724215838949,-882.99597685,0.00024184,2]
[335420908,1724215838959,-277.68803325,0.00024246,2]
[335420910,1724215838968,-154.70570486,0.00024349,2]
[335420912,1724215838979,-293.32351167,0.00024356,2]
[335420914,1724215838989,-500.0,0.00024445,2]
[335420916,1724215838998,-500.0,0.00024445,2]
[335420918,1724215839007,-329.70865821,0.00024445,2]
[335420920,1724215839016,-500.0,0.00024445,2]
[335420922,1724215839026,-500.0,0.00024445,2]
[335420924,1724215839036,-500.0,0.00024445,2]
[335420926,1724215839045,-29706.5367776,0.00024446,3]
[335420928,1724215839055,-226.13158555,0.00024457,2]
[335420930,1724215839064,-1260.81854444,0.00024457,2]
[335420932,1724215839074,-287.17173053,0.00024457,2]
[335420934,1724215839084,-10512.82478895,0.00024457,2]
[335420936,1724215839093,-126513.3262371,0.00024457,7]
[335420939,1724215839103,-160.8601179,0.00024473,2]
[335420941,1724215839113,-293.32351166,0.00025862,2]
[335420943,1724215839123,-331.166596,0.00026881,2]
[335420945,1724215839132,-331.16659596,0.00028869,2]
[335420947,1724215839142,-178.72751622,0.0003,5]
[335420949,1724215839152,-303.14911,0.00030596,2]
[335420951,1724215839163,-331.16659596,0.00030856,2]
[335420953,1724215839173,-161.150655,0.00031781,2]
[335420955,1724215839183,-14853.2683888,0.00032265,4]
[335420957,1724215839192,-150.0,0.00032275,2]
[335420959,1724215839202,-7749.508,0.00032275,2]
[335420961,1724215839214,-150.63,0.00032275,2]
[335420963,1724215839223,-150.0,0.00032275,2]
[335420965,1724215839232,-186.064452,0.00032314,2]
[335420967,1724215839242,-187.780861,0.00032314,2]
[335420970,1724215839251,-201.146419,0.00032314,2]
[335420972,1724215839260,-187.036578,0.00032314,2]
[335420974,1724215839271,-331.16659596,0.00032844,2]
[335420976,1724215839282,-153.0,0.00033096,2]
[335420978,1724215839291,-153.0,0.00033096,2]
[335420980,1724215839301,-153.0,0.00033096,2]
[335420982,1724215839310,-153.0,0.00033096,2]
[335420984,1724215839319,-153.0,0.00033096,2]
[335420986,1724215839329,-153.0,0.00033096,2]
[335420988,1724215839338,-153.0,0.00033096,2]
[335420990,1724215839348,-153.0,0.00033096,2]
[335420992,1724215839357,-153.0,0.00033096,2]
[335420994,1724215839367,-153.0,0.00033096,2]
[335420996,1724215839379,-307.1663741,0.00033096,2]
[335420998,1724215839388,-186.064452,0.00033122,2]
[335421000,1724215839398,-187.780861,0.00033122,2]
[335421002,1724215839407,-156.21496732,0.00033234,3]
[335421004,1724215839416,-500.0,0.00033309,7]
[335421006,1724215839426,-500.0,0.00033309,7]
[335421008,1724215839435,-173.72940789,0.00033309,7]
[335421021,1724215839547,-450.0,0.00033309,7]
[335421023,1724215839558,-500.0,0.00033309,7]
[335421025,1724215839567,-500.0,0.00033309,7]
[335421027,1724215839576,-5943.41,0.0003331,21]
[335421029,1724215839585,-409.0504316,0.0003337,2]
[335421031,1724215839594,-153.0,0.0003337,2]
[335421033,1724215839603,-206.3303187,0.0003337,2]
[335421035,1724215839612,-207.6241733,0.0003337,2]
[335421036,1724215839622,-409.0504316,0.0003337,2]
[335421038,1724215839630,-366.9981299,0.0003337,2]
[335421040,1724215839639,-207.6241733,0.0003337,2]
[335421042,1724215839648,-189.1581543,0.0003337,2]
[335421044,1724215839657,-150.112236,0.000339,5]
[335421046,1724215839666,-186.064452,0.0003393,2]
[335421048,1724215839675,-187.780861,0.0003393,2]
[335421050,1724215839684,-500.0,0.00034015,7]
[335421052,1724215839693,-14853.2683888,0.00034234,4]
[335421054,1724215839702,-3641.5,0.00034246,21]
[335421056,1724215839711,-3641.5,0.00034246,21]
[335421058,1724215839720,-3641.5,0.00034246,21]
[335421060,1724215839728,-3641.5,0.00034246,21]
[335421062,1724215839737,-3641.5,0.00034246,21]
[335421064,1724215839746,-3641.5,0.00034246,21]
[335421066,1724215839755,-500.0,0.00034246,21]
[335421068,1724215839764,-500.0,0.00034246,21]
[335421070,1724215839773,-516.28430772,0.00034246,21]
[335421072,1724215839782,-223.783619,0.00034247,2]
[335421074,1724215839791,-166.688108,0.00034427,2]
[335421076,1724215839799,-5031.84946499,0.00034446,49]
[335421078,1724215839808,-1000.0,0.000345,2]
[335421080,1724215839818,-1000.0,0.000346,2]
[335421082,1724215839827,-743.0,0.000346,2]
[335421084,1724215839835,-5943.41,0.0003468,21]
[335421086,1724215839844,-1000.0,0.000347,3]
[335421088,1724215839853,-168.698788,0.00034703,2]
[335421090,1724215839862,-151.0,0.0003471,7]
[335421092,1724215839873,-29706.5367776,0.0003471,4]
[335421094,1724215839882,-156.748503,0.0003472,7]
[335421096,1724215839891,-151.0,0.0003472,7]
[335421098,1724215839901,-167.049542,0.0003472,7]
[335421100,1724215839910,-167.049542,0.0003472,7]
[335421102,1724215839919,-151.0,0.0003472,7]
[335421104,1724215839928,-151.0,0.0003472,7]
[335421106,1724215839937,-151.0,0.0003472,7]
[335421108,1724215839946,-31206.37546593,0.0003472,5]
[335421194,1724215840890,-21924.12697229,0.0003,9]
[335421196,1724215840900,-41578.9888683,0.0003472,5]
[335421198,1724215840909,-3130.46238256,0.00034799,7]
[335421200,1724215840919,-1000.0,0.000348,7]
[335421202,1724215840928,-1632.06462097,0.000348,12]
[335421204,1724215840937,-1632.06462096,0.000348,12]
[335421206,1724215840947,-1632.06462096,0.000348,12]
[335421208,1724215840956,-1632.06462096,0.000348,12]
[335421210,1724215840966,-3641.5,0.00034809,21]
[335421212,1724215840975,-151.0,0.0003482,7]
[335421214,1724215840985,-3641.5,0.0003482,21]
[335421216,1724215840995,-3641.5,0.0003482,21]
[335421218,1724215841004,-524.38569153,0.00034821,2]
[335421220,1724215841013,-524.38569146,0.0003483,2]
[335421222,1724215841023,-24343.44652071,0.00034831,120]
[335421224,1724215841032,-331.16659596,0.00034831,2]
[335421226,1724215841042,-524.38569146,0.00034839,2]
[335421228,1724215841051,-524.38569146,0.00034847,2]
[335421230,1724215841061,-524.38569146,0.00034856,2]
[335421232,1724215841072,-524.38569146,0.00034865,2]
[335421235,1724215841082,-524.38569146,0.00034874,2]
[335421237,1724215841092,-2548.43986682,0.00034879,4]
[335421293,1724216119626,220.77493426,0.00013971,2]
[335421294,1724216122047,154.85273736,0.00013971,2]
[335421298,1724216502737,10000.0,0.00014,2]
[335421299,1724216510336,10000.0,0.00016555,30]
[335421301,1724216730151,-161.997992,0.00014247,2]
[335421302,1724216730173,-324.2817578,0.00017808,2]
[335421305,1724216832090,-862.64603536,0.00014245,2]
[335421306,1724216832112,-168.190603,0.00014247,2]
[335421307,1724216832133,-318.55706663,0.00014519,2]
[335421308,1724216832153,-204.20062038,0.00016555,2]
[335421309,1724216832173,-1184.7182422,0.00017808,2]
[335421310,1724216832192,-882.99597685,0.00024728,2]
[335421311,1724216832342,-882.99597685,0.00024728,2]
[335421312,1724216832365,-300.0,0.00024813,2]
[335421313,1724216832385,-277.68803325,0.00024814,2]
[335421314,1724216832405,-160.8404123,0.00024814,2]
[335421315,1724216832426,-896.83228212,0.00024814,2]
[335421316,1724216832445,-160.8404123,0.00024814,2]
[335421317,1724216832465,-161.997992,0.00025405,2]
[335421318,1724216832488,-152.5,0.000266,31]
[335421319,1724216832510,-152.5,0.000286,31]
[335421320,1724216832536,-152.5,0.000286,31]
[335421321,1724216832557,-186.0675383,0.00029267,2]
[335421322,1724216832578,-458.53578274,0.00029343,2]
[335421323,1724216834440,-193.85809516,0.00029343,2]
[335421324,1724216835092,-196.66796704,0.00029343,2]
[335421325,1724216840111,-276.11309381,0.00024803,2]
[335421326,1724216841158,-1.57493944,0.00024803,2]
[335421327,1724216841180,-202.62568094,0.00029343,2]
[335421328,1724216842087,-181.33466014,0.00029343,2]
[335421329,1724216851126,-293.62794693,0.000249,2]
[335421330,1724216851148,-2872.59580488,0.00029343,2]
[335421331,1724216851169,-166.688108,0.00029477,2]
[335421332,1724216851190,-3000.0,0.0002981,2]
[335421333,1724216851211,-178.72751622,0.0003,5]
[335421334,1724216851244,-190.856399,0.00030033,2]
[335421335,1724216851275,-165.979066,0.00030415,2]
[335421336,1724216851298,-190.856399,0.00030555,2]
[335421337,1724216851324,-152.5,0.000307,31]
[335421338,1724216851350,-152.5,0.000307,31]
[335421339,1724216851374,-190.856399,0.00031077,2]
[335421340,1724216851397,-190.856399,0.00031598,2]
[335421341,1724216851419,-168.095656,0.00032255,2]
[335421342,1724216851441,-1647.63603932,0.00032607,2]
[335421345,1724216970324,251.24884097,0.00014519,2]
[335421346,1724216970346,182.88254393,0.00014519,2]
[335421347,1724216970366,151.57411565,0.00014519,2]
[335421348,1724216970386,206.78,0.00014519,2]
[335421349,1724216972111,-70.16053481,0.00014519,2]
[335421351,1724216996721,200.52363042,0.00014519,2]
[335421352,1724216996757,162.67701492,0.00014519,2]
[335421353,1724216996790,129.26946519,0.00014519,2]
[335421354,1724216996822,174.82501089,0.00014519,2]
[335421442,1724217031953,-324.09330626,0.00014519,2]
[335421444,1724217031963,-218.7590501,0.00014519,2]
[335421446,1724217031973,-1005.59628277,0.00014519,2]
[335421447,1724217031982,-567.87513542,0.00025211,2]
[335421661,1724217038452,-219.21728904,0.00014519,2]
[335421662,1724217038463,-119.24804661,0.00025211,2]
[335421663,1724217038472,-376.49813699,0.00025399,2]
[335421664,1724217038483,-173.0,0.00027,2]
[335421665,1724217038493,-173.0,0.00028767,2]
[335421666,1724217038503,-12497.8561371,0.00029333,3]
[335421667,1724217038512,-491.26129037,0.00029373,2]
[335421668,1724217038522,-277.999999,0.000295,120]
[335421669,1724217038531,-178.72751622,0.0003,5]
[335421670,1724217038543,-300.0,0.00032,5]
[335421671,1724217038553,-290.701469,0.00032314,2]
[335421672,1724217038562,-220.204455,0.00032314,2]
[335421673,1724217038572,-168.673987,0.00032314,2]
[335421674,1724217038581,-166.406446,0.00032314,2]
[335421675,1724217038591,-303.82362742,0.00032607,4]
[335421676,1724217038601,-407.65920801,0.00032607,3]
[335421677,1724217038611,-246.71774564,0.00032607,4]
[335421678,1724217038620,-385.83533853,0.00032607,4]
[335421679,1724217038630,-152.5,0.000327,31]
[335421680,1724217038641,-152.5,0.000327,31]
[335421681,1724217038652,-290.701469,0.00032718,2]
[335421682,1724217038662,-220.204455,0.00032718,2]
[335421683,1724217038672,-166.406446,0.00032853,2]
[335421684,1724217038683,-500.0,0.00032875,2]
[335421685,1724217038693,-500.0,0.00032875,2]
[335421686,1724217038702,-500.0,0.00032875,2]
[335421687,1724217038712,-500.0,0.00032875,2]
[335421688,1724217038724,-500.0,0.00032875,2]
[335421689,1724217038735,-500.0,0.00032875,2]
[335421690,1724217038745,-500.0,0.00032875,2]
[335421691,1724217038754,-500.0,0.00032875,2]
[335421692,1724217038765,-500.0,0.00032875,2]
[335421693,1724217038774,-500.0,0.00032875,2]
[335421694,1724217038784,-500.0,0.00032875,2]
[335421695,1724217038794,-500.0,0.00032875,2]
[335421696,1724217038804,-500.0,0.00032875,2]
[335421697,1724217038815,-403.34490183,0.00032875,2]
[335421698,1724217038824,-500.0,0.00032875,2]
[335421699,1724217038835,-500.0,0.00032875,2]
[335421700,1724217038844,-6440.14,0.00032876,21]
[335421701,1724217038855,-300.0,0.00033,7]
[335421702,1724217038864,-151.0,0.00033113,3]
[335421703,1724217038874,-290.701469,0.00033122,2]
[335421704,1724217038884,-220.204455,0.00033122,2]
[335421705,1724217038893,-156.21496732,0.00033234,3]
[335421706,1724217038903,-166.406446,0.00033391,2]
[335421707,1724217038912,-290.701469,0.00033526,2]
[335421708,1724217038921,-220.204455,0.00033526,2]
[335421709,1724217038931,-602.76460417,0.00033534,2]
[335421710,1724217038939,-417.1764386,0.00033753,2]
[335421711,1724217038949,-153.0,0.00033753,2]
[335421712,1724217038958,-4585.53194651,0.00033838,2]
[335421713,1724217038967,-168.673987,0.0003393,2]
[335421714,1724217038976,-166.406446,0.0003393,2]
[335421715,1724217038985,-290.701469,0.0003393,2]
[335421716,1724217038994,-220.204455,0.0003393,2]
[335421717,1724217039004,-743.0,0.00034,2]
[335421718,1724217039013,-508.0,0.00034,2]
[335421719,1724217039022,-500.000001,0.00034,2]
[335421720,1724217039031,-300.0,0.00034,9]
[335421721,1724217039042,-151.0,0.00034022,4]
[335421722,1724217039051,-151.0,0.00034022,4]
[335421723,1724217039061,-4585.53194651,0.00034149,2]
[335421724,1724217039070,-500.0,0.00034246,21]
[335421725,1724217039079,-500.0,0.00034246,21]
[335421726,1724217039088,-516.28430772,0.00034246,21]
[335421727,1724217039097,-6440.14,0.00034246,21]
[335421728,1724217039106,-234.516046,0.00034247,2]
[335421729,1724217039116,-4585.53194651,0.00034314,2]
[335421730,1724217039126,-5031.84946499,0.00034446,45]
[335421731,1724217039136,-7727.0,0.00034468,2]
[335421732,1724217039149,-882.39,0.0003448,3]
[335421733,1724217039159,-500.0,0.000345,21]
[335421735,1724217039168,-266.77786964,0.000345,21]
[335421736,1724217039277,-500.0,0.000345,21]
[335421737,1724217039287,-500.0,0.00034509,7]
[335421738,1724217039296,-500.0,0.00034509,7]
[335421739,1724217039305,-500.0,0.00034509,7]
[335421740,1724217039314,-500.0,0.00034509,7]
[335421741,1724217039324,-271.79027471,0.00034509,7]
[335421742,1724217039333,-173.72940789,0.00034509,7]
[335421743,1724217039343,-500.0,0.00034509,7]
[335421744,1724217039352,-174.48457648,0.00034509,7]
[335421745,1724217039361,-500.0,0.00034509,7]
[335421746,1724217039371,-500.0,0.00034509,7]
[335421747,1724217039380,-500.0,0.00034509,7]
[335421748,1724217039389,-500.0,0.00034509,7]
[335421749,1724217039398,-500.0,0.00034509,7]
[335421750,1724217039407,-500.0,0.00034509,7]
[335421751,1724217039417,-12497.8561371,0.0003451,4]
[335421752,1724217039426,-2000.0,0.0003452,2]
[335421753,1724217039436,-31206.37546593,0.0003452,5]
[335421754,1724217039445,-4585.53194652,0.00034536,2]
[335421755,1724217039454,-12497.8561371,0.0003457,4]
[335421756,1724217039463,-201.44032986,0.00034573,2]
[335421757,1724217039472,-151.48342059,0.00034573,5]
[335421758,1724217039481,-12497.8561371,0.0003458,4]
[335421759,1724217039490,-24995.7122743,0.0003459,4]
[335421760,1724217039499,-1000.0,0.00034598,2]
[335421761,1724217039508,-3706.53,0.00034599,21]
[335421763,1724217039518,-1000.0,0.000346,2]
[335421764,1724217039527,-12497.8561371,0.000346,4]
[335421765,1724217039536,-152.362039,0.00034601,7]
[335421766,1724217039545,-151.347671,0.00034601,7]
[335421768,1724217039555,-167.049542,0.00034601,7]
[335421770,1724217039565,-344.885066,0.00034601,7]
[335421772,1724217039574,-167.049542,0.00034601,7]
[335421774,1724217039583,-344.885066,0.00034601,7]
[335421776,1724217039592,-151.0,0.00034601,7]
[335421779,1724217039601,-3706.53,0.00034608,21]
[335421781,1724217039610,-151.0,0.00034609,7]
[335421783,1724217039619,-190.118313,0.00034609,7]
[335421784,1724217039628,-3706.53,0.00034609,21]
[335421787,1724217039637,-151.0,0.00034609,7]
[335421790,1724217039646,-193.324513,0.00034609,7]
[335421793,1724217039655,-193.324513,0.00034609,7]
[335421796,1724217039665,-3706.53,0.00034618,21]
[335421799,1724217039673,-151.0,0.0003462,7]
[335421800,1724217039682,-153.423635,0.0003462,7]
[335421801,1724217039692,-155.627746,0.0003462,7]
[335421802,1724217039701,-151.0,0.0003462,7]
[335421803,1724217039711,-151.0,0.0003462,7]
[335421804,1724217039720,-151.400065,0.0003462,7]
[335421805,1724217039735,-151.0,0.0003462,7]
[335421806,1724217039744,-151.0,0.0003462,7]
[335421807,1724217039753,-153.0217,0.0003462,7]
[335421808,1724217039763,-3706.53,0.0003462,21]
[335421809,1724217039775,-3706.53,0.0003462,21]
[335421811,1724217039784,-160.0,0.00034676,3]
[335421812,1724217039795,-161.03833414,0.00034676,5]
[335421813,1724217039806,-150.112235,0.000347,9]
[335421814,1724217039816,-3706.53,0.00034718,21]
[335421815,1724217039825,-1000.0,0.0003475,2]
[335421816,1724217039835,-1000.0,0.000348,3]
[335421817,1724217039844,-152.5,0.000348,31]
[335421818,1724217039854,-152.5,0.000348,31]
[335421819,1724217039863,-152.5,0.000348,31]
[335421820,1724217039873,-152.5,0.000348,31]
[335421821,1724217039882,-152.5,0.000348,31]
[335421822,1724217039892,-150.112233,0.000348,6]
[335421823,1724217039901,-150.112233,0.000348,8]
[335421824,1724217039910,-157.31570751,0.00034821,2]
[335421825,1724217039919,-157.31570743,0.0003483,2]
[335421827,1724217039930,-157.31570743,0.00034839,2]
[335421829,1724217039941,-157.31570743,0.00034847,2]
[335421830,1724217039952,-157.31570743,0.00034856,2]
[335421831,1724217039962,-12497.8561371,0.00034858,4]
[335421832,1724217039973,-12497.8561371,0.00034859,4]
[335421834,1724217039983,-167.049542,0.00034859,7]
[335421835,1724217039995,-167.049542,0.00034859,7]
[335421836,1724217040005,-344.885066,0.00034859,7]
[335421837,1724217040017,-344.885066,0.00034859,7]
[335421838,1724217040027,-151.0,0.00034859,7]
[335421839,1724217040038,-157.31570743,0.00034865,2]
[335421840,1724217040049,-3706.53,0.00034867,21]
[335421841,1724217040058,-151.0,0.00034868,7]
[335421842,1724217040068,-3706.53,0.00034868,21]
[335421843,1724217040079,-153.835038,0.00034868,7]
[335421844,1724217040091,-193.324513,0.00034868,7]
[335421845,1724217040102,-193.324513,0.00034868,7]
[335421846,1724217040114,-198.29562586,0.00034868,2]
[335421847,1724217040125,-12497.8561371,0.00034868,4]
[335421848,1724217040135,-12497.8561371,0.00034869,4]
[335421849,1724217040146,-251.922161,0.00034869,2]
[335421850,1724217040156,-153.316594,0.00034869,7]
[335421851,1724217040165,-151.0,0.00034869,7]
[335421852,1724217040174,-151.0,0.00034869,7]
[335421853,1724217040183,-151.0,0.00034869,7]
[335421854,1724217040192,-292.818541,0.00034869,7]
[335421855,1724217040201,-198.165829,0.00034869,7]
[335421856,1724217040210,-151.0,0.00034869,7]
[335421857,1724217040219,-151.0,0.00034869,7]
[335421858,1724217040229,-151.0,0.00034869,7]
[335421859,1724217040238,-151.0,0.00034869,7]
[335421860,1724217040247,-151.0,0.00034869,7]
[335421861,1724217040256,-151.0,0.00034869,7]
[335421862,1724217040265,-151.0,0.00034869,7]
[335421863,1724217040274,-156.748503,0.00034869,7]
[335421864,1724217040283,-151.0,0.00034869,7]
[335421865,1724217040293,-151.0,0.00034869,7]
[335421866,1724217040302,-151.0,0.00034869,7]
[335421867,1724217040311,-1543.449739,0.00034869,7]
[335421868,1724217040320,-1543.449739,0.00034869,7]
[335421869,1724217040330,-176.141595,0.00034869,7]
[335421870,1724217040339,-151.0,0.00034869,7]
[335421871,1724217040348,-151.0,0.00034869,7]
[335421872,1724217040357,-193.324513,0.00034869,7]
[335421873,1724217040369,-193.324513,0.00034869,7]
[335421874,1724217040379,-157.31570743,0.00034874,2]
[335421875,1724217040389,-3706.53,0.00034877,21]
[335421876,1724217040400,-150.42670816,0.00034878,2]
[335421877,1724217040410,-3706.53,0.00034878,21]
[335421878,1724217040419,-3706.53,0.00034878,21]
[335421879,1724217040428,-3706.53,0.00034878,21]
[335421880,1724217040438,-3706.53,0.00034878,21]
[335421881,1724217040448,-3706.53,0.00034878,21]
[335421882,1724217040457,-167.049542,0.00034878,7]
[335421883,1724217040467,-167.049542,0.00034878,7]
[335421884,1724217040476,-344.885066,0.00034878,7]
[335421885,1724217040485,-344.885066,0.00034878,7]
[335421886,1724217040495,-151.0,0.00034878,7]
[335421887,1724217040504,-151.0,0.00034879,7]
[335421888,1724217040514,-152.347072,0.00034879,7]
[335421889,1724217040523,-154.26523,0.00034879,7]
[335421890,1724217040533,-151.0,0.00034879,7]
[335421891,1724217040549,-151.0,0.00034879,7]
[335421892,1724217040558,-185.531988,0.00034879,4]
[335421893,1724217040568,-151.0,0.00034879,7]
[335421894,1724217040578,-151.0,0.00034879,7]
[335421895,1724217040588,-152.303167,0.00034879,7]
[335421896,1724217040597,-151.0,0.00034879,7]
[335421897,1724217040605,-151.0,0.00034879,7]
[335421898,1724217040614,-151.0,0.00034879,7]
[335421899,1724217040623,-151.0,0.00034879,7]
[335421900,1724217040632,-153.828758,0.00034879,7]
[335421901,1724217040642,-200.180347,0.00034879,7]
[335421902,1724217040651,-151.0,0.00034879,7]
[335421903,1724217040661,-151.0,0.00034879,7]
[335421904,1724217040670,-151.0,0.00034879,7]
[335421905,1724217040680,-256.402702,0.00034879,7]
[335421906,1724217040689,-151.0,0.00034879,7]
[335421907,1724217040699,-195.490736,0.00034879,7]
[335421908,1724217040708,-182.875838,0.00034879,7]
[335421909,1724217040718,-151.0,0.00034879,7]
[335421910,1724217040731,-151.0,0.00034879,7]
[335421911,1724217040740,-151.0,0.00034879,7]
[335421912,1724217040750,-151.0,0.00034879,7]
[335421913,1724217040759,-1543.449739,0.00034879,7]
[335421914,1724217040769,-1543.449739,0.00034879,7]
[335421915,1724217040778,-1543.449739,0.00034879,7]
[335421916,1724217040789,-1543.449739,0.00034879,7]
[335421917,1724217040798,-195.753675,0.00034879,7]
[335421918,1724217040810,-195.753675,0.00034879,7]
[335421919,1724217040820,-195.753675,0.00034879,7]
[335421920,1724217040830,-195.753675,0.00034879,7]
[335421921,1724217040839,-151.0,0.00034879,7]
[335421922,1724217040848,-164.341905,0.00034879,7]
[335421923,1724217040858,-151.0,0.00034879,7]
[335421924,1724217040868,-193.324513,0.00034879,7]
[335421925,1724217040877,-193.324513,0.00034879,7]
[335421926,1724217040887,-157.31570743,0.00034882,2]
[335421927,1724217040897,-3706.53,0.00034889,21]
[335421928,1724217040906,-1210.49638807,0.0003489,2]
[335421929,1724217040916,-12497.8561371,0.0003489,4]
[335421930,1724217040925,-157.31570743,0.00034891,2]
[335421931,1724217040935,-10962.06348615,0.000349,9]
[335421932,1724217040945,-15639.95061104,0.000349,7]
[335421933,1724217040955,-1000.0,0.000349,3]
[335421934,1724217040964,-1193.05305734,0.000349,15]
[335421935,1724217040973,-7381.721881,0.000349,7]
[335421936,1724217040983,-151.0,0.000349,7]
[335421937,1724217040993,-151.0,0.000349,7]
[335421938,1724217041002,-151.0,0.000349,7]
[335421939,1724217041012,-300.406197,0.000349,17]
[335421940,1724217041021,-151.0,0.000349,7]
[335421941,1724217041030,-151.0,0.000349,7]
[335421942,1724217041040,-157.31570743,0.000349,2]
[335421943,1724217041051,-151.0,0.000349,7]
[335421944,1724217041060,-195.753675,0.000349,7]
[335421945,1724217041070,-195.753675,0.000349,7]
[335421946,1724217041080,-151.0,0.000349,7]
[335421947,1724217041090,-193.324513,0.000349,7]
[335421948,1724217041100,-193.324513,0.000349,7]
[335421949,1724217041109,-150.112233,0.000349,9]
[335421950,1724217041119,-150.112233,0.000349,10]
[335421951,1724217041129,-167.049542,0.000349,7]
[335421952,1724217041139,-167.049542,0.000349,7]
[335421953,1724217041149,-344.885066,0.000349,7]
[335421954,1724217041158,-344.885066,0.000349,7]
[335421955,1724217041168,-151.0,0.000349,7]
[335421956,1724217041178,-3706.53,0.0003491,21]
[335421957,1724217041269,-25486.91644951,0.0003491,9]
[335421958,1724217041279,-24995.7122743,0.00034911,4]
[335421959,1724217041289,-156.004144,0.00034918,7]
[335421960,1724217041298,-1543.449739,0.00034918,7]
[335421961,1724217041308,-1543.449739,0.00034918,7]
[335421962,1724217041320,-151.0,0.0003492,7]
[335421963,1724217041331,-3706.53,0.0003492,21]
[335421964,1724217041342,-12497.8561371,0.0003492,4]
[335421965,1724217041351,-24995.7122743,0.00034921,4]
[335421966,1724217041361,-151.0,0.00034921,7]
[335421967,1724217041371,-151.0,0.00034921,7]
[335421968,1724217041383,-151.0,0.00034921,7]
[335421969,1724217041392,-1543.449739,0.00034921,7]
[335421970,1724217041403,-1543.449739,0.00034921,7]
[335421971,1724217041412,-151.0,0.00034921,7]
[335421972,1724217041421,-195.753675,0.00034921,7]
[335421973,1724217041433,-195.753675,0.00034921,7]
[335421974,1724217041444,-151.0,0.00034921,7]